bitfinex/quotes_BTCUSD_20241025
["timestamp","ask_amount","ask_price","bid_price","bid_amount"]
[1729877227569,0.001646,67414.0,67413.0,0.61444281]
[1729877227790,0.22257835,67428.0,67417.0,0.16533]
[1729877227991,0.22257835,67428.0,67417.0,0.95154961]
[1729877229244,0.22257835,67428.0,67427.0,0.5201659]
[1729877229449,0.22257835,67428.0,67427.0,0.67066971]
[1729877229655,0.22422435,67436.0,67435.0,0.14829]
[1729877229863,0.22422435,67436.0,67435.0,0.17350381]
[1729877230067,0.001646,67436.0,67435.0,0.32179381]
[1729877230892,0.001646,67436.0,67435.0,0.17350381]
[1729877231320,0.149934,67436.0,67435.0,0.17350381]
[1729877231727,0.001646,67436.0,67435.0,0.17350381]
[1729877232146,0.149934,67436.0,67435.0,0.15050381]
[1729877232361,0.148303,67430.0,67428.0,0.22257835]
[1729877232553,0.148301,67430.0,67429.0,0.15050381]
[1729877235668,0.001646,67436.0,67429.0,0.15050381]
[1729877235878,0.001646,67436.0,67429.0,0.15346957]
[1729877236140,0.001646,67436.0,67423.0,0.005]
[1729877236141,0.148321,67421.0,67412.0,0.0797]
[1729877236346,0.148328,67418.0,67417.0,0.22257835]
[1729877236562,0.148328,67418.0,67417.0,0.37308216]
[1729877236788,0.148328,67418.0,67417.0,0.15050381]
[1729877237416,0.148349,67409.0,67406.0,0.000823]
[1729877237627,0.148349,67409.0,67407.0,0.15050381]
[1729877238271,0.14815999,67409.0,67407.0,0.15050381]
[1729877238901,0.22257835,67429.0,67408.0,0.1738579]
[1729877239110,0.22257835,67429.0,67409.0,0.29885081]
[1729877239111,0.148333,67416.0,67409.0,0.29885081]
[1729877239346,0.148333,67416.0,67410.0,0.37092335]
[1729877239585,0.148333,67416.0,67411.0,0.15050381]
[1729877240329,0.148323,67420.0,67412.0,0.14834]
[1729877240557,0.148331,67417.0,67413.0,0.15050381]
[1729877240794,0.148324,67420.0,67414.0,0.148335]
[1729877241043,0.148325,67420.0,67415.0,0.15050381]
[1729877241276,0.296617,67427.0,67415.0,0.15050381]
[1729877241520,0.001646,67418.0,67415.0,0.15050381]
[1729877242088,0.149974,67418.0,67415.0,0.15050381]
[1729877242552,0.001646,67418.0,67415.0,0.15050381]
[1729877243250,0.001646,67418.0,67417.0,0.3171879]
[1729877243452,0.001646,67418.0,67417.0,0.54989171]
[1729877243663,0.001646,67418.0,67417.0,0.57989171]
[1729877243868,0.001646,67418.0,67417.0,0.58989171]
[1729877244696,0.001646,67418.0,67417.0,0.58789171]
[1729877245330,0.001646,67418.0,67417.0,0.38103381]
[1729877245788,0.001646,67418.0,67417.0,0.38603381]
[1729877246018,0.001646,67418.0,67417.0,0.55489171]
[1729877247573,0.001646,67418.0,67417.0,0.55689171]
[1729877248233,0.001646,67418.0,67417.0,0.54989171]
[1729877248440,0.001646,67418.0,67417.0,0.15050381]
[1729877248651,0.001646,67418.0,67417.0,0.29883381]
[1729877249069,0.001646,67418.0,67417.0,0.46769171]
[1729877249298,0.001646,67418.0,67417.0,0.50769171]
[1729877249507,0.001646,67418.0,67417.0,0.58849171]
[1729877250697,0.001646,67418.0,67417.0,0.23330381]
[1729877250698,0.00146745,67418.0,67417.0,0.23330381]
[1729877250877,0.14979545,67418.0,67417.0,0.15050381]
[1729877251076,0.00146745,67418.0,67417.0,0.15050381]
[1729877251275,0.14979545,67418.0,67417.0,0.15050381]
[1729877252068,0.148343,67411.0,67410.0,0.22257835]
[1729877252493,0.148343,67411.0,67407.0,0.000823]
[1729877252704,0.148343,67411.0,67408.0,0.15050381]
[1729877253353,0.296661,67417.0,67408.0,0.15050381]
[1729877253559,0.148346,67410.0,67408.0,0.15050381]
[1729877253998,0.14834,67413.0,67408.0,0.15050381]
[1729877254226,0.296645,67421.0,67408.0,0.15050381]
[1729877254227,0.296645,67421.0,67409.0,0.17182471]
[1729877254436,0.23634397,67420.0,67414.0,0.1688579]
[1729877254650,0.148313,67425.0,67417.0,0.14833]
[1729877254865,0.148313,67425.0,67417.0,0.29883381]
[1729877255077,0.296631,67424.0,67417.0,0.15050381]
[1729877255303,0.14979545,67418.0,67417.0,0.15050381]
[1729877255544,0.00146745,67418.0,67417.0,0.15050381]
[1729877256574,0.14979545,67418.0,67417.0,0.15050381]
[1729877257031,0.14979545,67418.0,67407.0,0.000823]
[1729877257032,0.00146745,67418.0,67407.0,0.000823]
[1729877257245,0.00146745,67418.0,67410.0,0.22257835]
[1729877257457,0.296665,67416.0,67411.0,0.15050381]
[1729877257666,0.0033674,67415.0,67407.0,0.000823]
[1729877257877,0.148344,67411.0,67408.0,0.15050381]
[1729877258127,0.148346,67410.0,67408.0,0.15050381]
[1729877258538,0.296678,67413.0,67408.0,0.15050381]
[1729877258539,0.148344,67411.0,67408.0,0.15050381]
[1729877258953,0.29669,67411.0,67408.0,0.15050381]
[1729877259155,0.148344,67411.0,67408.0,0.15050381]
[1729877259373,0.296665,67416.0,67408.0,0.15050381]
[1729877259583,0.14834,67413.0,67408.0,0.15050381]
[1729877259809,0.148344,67411.0,67408.0,0.15050381]
[1729877260447,0.296674,67414.0,67408.0,0.15050381]
[1729877260687,0.51921735,67422.0,67408.0,0.15050381]
[1729877260893,0.29812545,67418.0,67408.0,0.15050381]
[1729877261101,0.29812545,67418.0,67408.0,0.1534705]
[1729877261311,0.296665,67416.0,67408.0,0.1534705]
[1729877261543,0.148339,67414.0,67408.0,0.1534705]
[1729877261775,0.148342,67412.0,67408.0,0.1534705]
[1729877262057,0.148342,67412.0,67408.0,0.15050381]
[1729877263543,0.296677,67414.0,67408.0,0.15050381]
[1729877263780,0.445016,67414.0,67408.0,0.15050381]
[1729877264040,0.00146745,67418.0,67408.0,0.44720281]
[1729877264294,0.148338,67414.0,67408.0,0.15132681]
[1729877264530,0.01522907,67418.0,67410.0,0.148343]
[1729877264531,0.148335,67415.0,67410.0,0.148343]
[1729877264796,0.148335,67415.0,67411.0,0.15050381]
[1729877265055,0.148333,67416.0,67411.0,0.15050381]
[1729877265303,0.148332,67416.0,67411.0,0.15050381]
[1729877265552,0.296665,67416.0,67411.0,0.15050381]
[1729877265800,0.148341,67412.0,67411.0,0.15050381]
[1729877266299,0.296679,67413.0,67411.0,0.15050381]
[1729877266300,0.148339,67413.0,67411.0,0.15050381]
[1729877266546,0.29812345,67418.0,67411.0,0.15050381]
[1729877266802,0.148334,67416.0,67411.0,0.15050381]
[1729877267049,0.00146745,67418.0,67411.0,0.37604884]
[1729877267277,0.00146745,67418.0,67417.0,0.14833]
[1729877267528,0.00146745,67418.0,67417.0,0.30180017]
[1729877267783,0.00146745,67418.0,67417.0,0.37710017]
[1729877268018,0.00146745,67418.0,67417.0,0.37413381]
[1729877268256,0.00146745,67418.0,67417.0,0.22580381]
[1729877269205,0.00146745,67418.0,67417.0,0.37413381]
[1729877271165,0.00146745,67418.0,67417.0,0.15050381]
[1729877271587,0.00146745,67418.0,67417.0,0.29883381]
[1729877273389,0.00146745,67418.0,67417.0,0.30180004]
[1729877274184,0.00146745,67418.0,67417.0,0.32183381]
[1729877274356,0.001646,67436.0,67417.0,0.32183381]
[1729877274357,0.01376906,67431.0,67430.0,0.148301]
[1729877274565,0.22257835,67434.0,67433.0,0.148295]
[1729877274920,0.001646,67436.0,67435.0,0.14829]
[1729877275125,0.001646,67436.0,67435.0,0.46765171]
[1729877275939,0.001646,67436.0,67435.0,0.29879381]
[1729877280096,0.001646,67436.0,67435.0,0.15050381]
[1729877280297,0.149934,67436.0,67435.0,0.15050381]
[1729877282719,0.001646,67436.0,67435.0,0.15050381]
[1729877282920,0.149934,67436.0,67435.0,0.15050381]
[1729877283586,0.001646,67436.0,67435.0,0.15050381]
[1729877283828,0.149934,67436.0,67435.0,0.15050381]
[1729877284253,0.001646,67436.0,67426.0,0.0753]
[1729877284440,0.148298,67432.0,67429.0,0.22257835]
[1729877284633,0.148298,67432.0,67430.0,0.15050381]
[1729877284834,0.298224,67436.0,67430.0,0.15050381]
[1729877285070,0.296588,67434.0,67430.0,0.15050381]
[1729877285272,0.298224,67436.0,67430.0,0.29880381]
[1729877285449,0.148296,67433.0,67430.0,0.15050381]
[1729877286964,0.148296,67433.0,67430.0,0.29880481]
[1729877287378,0.001646,67436.0,67431.0,0.296599]
[1729877287615,0.148291,67435.0,67432.0,0.15050381]
[1729877288479,0.148291,67435.0,67432.0,0.29880081]
[1729877288900,0.001646,67436.0,67433.0,0.148294]
[1729877289125,0.298224,67436.0,67434.0,0.15050381]
[1729877289327,0.14829,67435.0,67434.0,0.15050381]
[1729877290200,0.001646,67436.0,67425.0,0.296622]
[1729877290408,0.001646,67436.0,67429.0,0.22257835]
[1729877290619,0.1483,67431.0,67430.0,0.15050381]
[1729877291488,0.148297,67432.0,67430.0,0.15050381]
[1729877291703,0.148299,67431.0,67430.0,0.15050381]
[1729877292358,0.298225,67436.0,67430.0,0.15050381]
[1729877292577,0.148293,67434.0,67430.0,0.15050381]
[1729877292834,0.148293,67434.0,67430.0,0.29880381]
[1729877293042,0.143293,67434.0,67430.0,0.29880381]
[1729877294300,0.148291,67435.0,67431.0,0.148299]
[1729877294518,0.001646,67436.0,67435.0,0.14829]
[1729877294730,0.001646,67436.0,67435.0,0.30175914]
[1729877295172,0.001646,67436.0,67435.0,0.32975914]
[1729877295385,0.22257835,67452.0,67450.0,0.1688579]
[1729877295609,0.22257835,67452.0,67451.0,0.148255]
[1729877295814,0.001646,67455.0,67451.0,0.148255]
[1729877296034,0.001646,67455.0,67452.0,0.15050381]
[1729877296255,0.001646,67455.0,67452.0,0.29875581]
[1729877297122,0.149893,67455.0,67452.0,0.15050381]
[1729877297802,0.001646,67455.0,67452.0,0.44700881]
[1729877298013,0.001646,67455.0,67453.0,0.148251]
[1729877298220,0.001646,67455.0,67454.0,0.15050381]
[1729877298647,0.149892,67455.0,67454.0,0.15050381]
[1729877299646,0.148263,67448.0,67443.0,0.231571]
[1729877299893,0.148265,67447.0,67444.0,0.15050381]
[1729877301036,0.148264,67448.0,67444.0,0.15050381]
[1729877301272,0.148265,67447.0,67444.0,0.15050381]
[1729877301528,0.148267,67446.0,67444.0,0.15050381]
[1729877301785,0.444788,67448.0,67444.0,0.15050381]
[1729877302289,0.14826,67449.0,67445.0,0.148268]
[1729877302533,0.14826,67449.0,67446.0,0.15050381]
[1729877302775,0.001644,67452.0,67446.0,0.15050381]
[1729877303257,0.148264,67447.0,67446.0,0.15050381]
[1729877303500,0.148264,67448.0,67446.0,0.15050381]
[1729877304849,0.148257,67451.0,67446.0,0.15050381]
[1729877305061,0.148257,67451.0,67447.0,0.148262]
[1729877305271,0.148257,67451.0,67448.0,0.148261]
[1729877305729,0.001644,67452.0,67451.0,0.148255]
[1729877305937,0.001644,67452.0,67451.0,0.29875881]
[1729877306593,0.001644,67452.0,67451.0,0.15050381]
[1729877306834,0.149897,67452.0,67451.0,0.15050381]
[1729877307045,0.001644,67452.0,67451.0,0.15050381]
[1729877307676,0.149897,67452.0,67451.0,0.15050381]
[1729877308152,0.001644,67452.0,67451.0,0.15050381]
[1729877308566,0.148262,67448.0,67446.0,0.22257835]
[1729877310523,0.148257,67451.0,67449.0,0.15050381]
[1729877310961,0.296511,67451.0,67438.0,0.301564]
[1729877311185,0.0050114,67452.0,67444.0,0.37308216]
[1729877311400,0.148266,67447.0,67444.0,0.37308216]
[1729877311862,0.001644,67452.0,67444.0,0.15050381]
[1729877312091,0.001644,67452.0,67437.0,0.22257835]
[1729877312092,0.01712437,67451.0,67440.0,0.22257835]
[1729877312305,0.296535,67446.0,67440.0,0.37308216]
[1729877312586,0.148277,67441.0,67440.0,0.15050381]
[1729877312838,0.0033674,67445.0,67436.0,0.000822]
[1729877312839,0.148286,67437.0,67436.0,0.000822]
[1729877313118,0.1516534,67437.0,67436.0,0.000822]
[1729877313365,0.0912,67445.0,67436.0,0.000822]
[1729877313366,0.0879,67451.0,67436.0,0.000822]
[1729877313606,0.148286,67437.0,67436.0,0.000822]
[1729877316701,0.1516534,67437.0,67436.0,0.000822]
[1729877317432,0.16540324,67437.0,67436.0,0.000822]
[1729877318109,0.1516534,67437.0,67436.0,0.000822]
[1729877322504,0.148286,67437.0,67436.0,0.000822]
[1729877323134,0.16202512,67437.0,67436.0,0.000822]
[1729877323346,0.148286,67437.0,67436.0,0.000822]
[1729877323606,0.16202512,67437.0,67436.0,0.000822]
[1729877325389,0.148286,67437.0,67436.0,0.000822]
[1729877327138,0.005,67445.0,67436.0,0.000822]
[1729877327139,0.1,67446.0,67436.0,0.000822]
[1729877327355,0.148285,67438.0,67436.0,0.000822]
[1729877329475,0.148284,67438.0,67436.0,0.000822]
[1729877329737,0.148286,67437.0,67436.0,0.000822]
[1729877331806,0.149286,67437.0,67436.0,0.000822]
[1729877333008,0.1526534,67437.0,67436.0,0.000822]
[1729877333449,0.01810586,67437.0,67436.0,0.000822]
[1729877333939,0.0043674,67437.0,67436.0,0.000822]
[1729877334368,0.3215113,67437.0,67436.0,0.000822]
[1729877334593,0.149286,67437.0,67436.0,0.000822]
[1729877334816,0.1526534,67437.0,67436.0,0.000822]
[1729877335282,0.16639112,67437.0,67436.0,0.000822]
[1729877336117,0.01810512,67437.0,67436.0,0.000822]
[1729877336331,0.1526534,67437.0,67436.0,0.000822]
[1729877336565,0.16639603,67437.0,67436.0,0.000822]
[1729877339105,0.16804003,67437.0,67436.0,0.000822]
[1729877341591,0.18180408,67437.0,67436.0,0.000822]
[1729877341831,0.44730789,67437.0,67436.0,0.000822]
[1729877342031,0.44395496,67437.0,67436.0,0.000822]
[1729877343075,0.43395496,67437.0,67436.0,0.000822]
[1729877343296,0.29345115,67437.0,67436.0,0.000822]
[1729877343508,0.28681855,67437.0,67436.0,0.000822]
[1729877343716,0.28081855,67437.0,67436.0,0.000822]
[1729877344408,0.118772,67437.0,67436.0,0.000822]
[1729877344625,0.0154046,67437.0,67436.0,0.000822]
[1729877344825,0.0154046,67437.0,67436.0,0.14911]
[1729877345257,0.0154046,67437.0,67436.0,0.000822]
[1729877346790,0.1636906,67437.0,67436.0,0.000822]
[1729877347004,0.18245038,67437.0,67436.0,0.000822]
[1729877347216,0.18581778,67437.0,67436.0,0.000822]
[1729877348881,0.172058,67437.0,67436.0,0.000822]
[1729877349069,0.18581562,67437.0,67436.0,0.000822]
[1729877349471,0.20782638,67437.0,67436.0,0.000822]
[1729877350284,0.30782638,67437.0,67436.0,0.000822]
[1729877350477,0.30782424,67437.0,67436.0,0.000822]
[1729877351829,0.29945684,67437.0,67436.0,0.000822]
[1729877352048,0.28081562,67437.0,67436.0,0.000822]
[1729877352744,0.18080354,67437.0,67436.0,0.000822]
[1729877352945,0.16705047,67437.0,67436.0,0.082622]
[1729877353219,0.01539707,67437.0,67436.0,0.082622]
[1729877353443,0.01539707,67437.0,67436.0,0.62234625]
[1729877353664,0.001644,67437.0,67436.0,0.3997679]
[1729877353878,0.001644,67437.0,67436.0,0.64147171]
[1729877356734,0.001644,67437.0,67436.0,0.64347171]
[1729877357001,0.001644,67437.0,67436.0,0.64147171]
[1729877361330,0.001644,67437.0,67436.0,0.32432581]
[1729877361555,0.14993,67437.0,67436.0,0.082622]
[1729877363735,0.14993,67437.0,67436.0,0.000822]
[1729877364614,0.001644,67437.0,67436.0,0.000822]
[1729877365260,0.001644,67437.0,67436.0,0.14911]
[1729877365505,0.001644,67437.0,67436.0,0.29961381]
[1729877367963,0.001644,67437.0,67436.0,0.46847171]
[1729877368184,0.001644,67437.0,67436.0,0.94002961]
[1729877368459,0.001644,67437.0,67436.0,0.94702961]
[1729877368894,0.001644,67437.0,67436.0,0.95689224]
[1729877369108,0.001644,67451.0,67436.0,0.95689224]
[1729877369109,0.001644,67451.0,67450.0,0.148257]
[1729877369329,0.001644,67451.0,67450.0,0.46761871]
[1729877369540,0.001644,67451.0,67450.0,0.49561871]
[1729877369799,0.001644,67451.0,67450.0,0.57521871]
[1729877370226,0.001644,67451.0,67450.0,0.38336081]
[1729877370439,0.001644,67451.0,67450.0,0.37836081]
[1729877370655,0.001644,67451.0,67450.0,0.23010381]
[1729877371102,0.001644,67451.0,67450.0,0.37836081]
[1729877377863,0.001644,67451.0,67450.0,0.23010381]
[1729877378716,0.001644,67451.0,67450.0,0.0796]
[1729877378930,0.148259,67450.0,67444.0,0.22427]
[1729877379134,0.0050114,67451.0,67446.0,0.148266]
[1729877379356,0.1532674,67451.0,67447.0,0.15050381]
[1729877379571,0.0050114,67451.0,67444.0,0.076]
[1729877379785,0.0050114,67451.0,67441.0,0.005]
[1729877379786,0.148266,67447.0,67441.0,0.153277]
[1729877379998,0.0033674,67446.0,67441.0,0.15550381]
[1729877380280,0.148263,67448.0,67442.0,0.148275]
[1729877380494,0.148269,67445.0,67441.0,0.15550381]
[1729877380708,0.296535,67446.0,67441.0,0.15050381]
[1729877380917,0.1516364,67445.0,67441.0,0.15550381]
[1729877381133,0.0033674,67445.0,67441.0,0.15550381]
[1729877381347,0.0033674,67445.0,67436.0,0.000822]
[1729877381557,0.0033674,67445.0,67437.0,0.22257835]
[1729877381764,0.148279,67440.0,67437.0,0.22257835]
[1729877381980,0.0033674,67439.0,67437.0,0.22257835]
[1729877382197,0.0033674,67439.0,67436.0,0.000822]
[1729877382821,0.148282,67439.0,67436.0,0.000822]
[1729877383066,0.0033674,67438.0,67436.0,0.000822]
[1729877383289,0.148286,67437.0,67436.0,0.000822]
[1729877383690,0.1516534,67437.0,67436.0,0.000822]
[1729877383926,0.16538189,67437.0,67436.0,0.000822]
[1729877385178,0.26448189,67437.0,67436.0,0.000822]
[1729877385601,0.2507534,67437.0,67436.0,0.000822]
[1729877385816,0.2781862,67437.0,67436.0,0.000822]
[1729877386439,0.26446966,67437.0,67436.0,0.000822]
[1729877387319,0.27442905,67437.0,67436.0,0.000822]
[1729877388445,0.63283782,67437.0,67436.0,0.000822]
[1729877388655,0.77916808,67437.0,67436.0,0.000822]
[1729877388864,0.8230027,67437.0,67436.0,0.000822]
[1729877389290,0.7435058,67437.0,67436.0,0.000822]
[1729877389500,0.75720251,67437.0,67436.0,0.000822]
[1729877389683,0.82291792,67437.0,67436.0,0.000822]
[1729877390120,0.75720251,67437.0,67436.0,0.000822]
[1729877390383,0.91892181,67437.0,67436.0,0.000822]
[1729877390572,0.82289799,67437.0,67436.0,0.000822]
[1729877390795,0.82289793,67437.0,67436.0,0.000822]
[1729877391017,0.71706203,67437.0,67436.0,0.000822]
[1729877391504,0.65136661,67437.0,67436.0,0.000822]
[1729877391750,0.69515135,67437.0,67436.0,0.000822]
[1729877391964,0.65136661,67437.0,67436.0,0.000822]
[1729877392420,0.69515135,67437.0,67436.0,0.000822]
[1729877392906,0.64583394,67437.0,67436.0,0.000822]
[1729877393140,0.69503137,67437.0,67436.0,0.000822]
[1729877393592,0.69503137,67437.0,67423.0,0.22257835]
[1729877393593,0.153315,67424.0,67423.0,0.22257835]
[1729877393818,0.33920625,67424.0,67423.0,0.22257835]
[1729877394106,0.33583885,67424.0,67423.0,0.22257835]
[1729877394340,0.33583885,67424.0,67418.0,0.000823]
[1729877394341,0.148326,67419.0,67418.0,0.000823]
[1729877394579,0.1516934,67419.0,67418.0,0.000823]
[1729877399272,0.1566934,67419.0,67418.0,0.000823]
[1729877399473,0.41919721,67419.0,67418.0,0.000823]
[1729877399684,0.49092981,67419.0,67418.0,0.000823]
[1729877399888,0.50081584,67419.0,67418.0,0.000823]
[1729877400543,0.2043,67407.0,67404.0,0.22257835]
[1729877400756,0.67538111,67407.0,67404.0,0.22257835]
[1729877400979,0.77061111,67407.0,67387.0,0.000839]
[1729877401203,0.78424638,67407.0,67387.0,0.000839]
[1729877401428,0.81969937,67407.0,67387.0,0.000839]
[1729877401643,0.81970354,67407.0,67387.0,0.000839]
[1729877401899,0.81770354,67407.0,67387.0,0.000839]
[1729877402105,0.81770451,67407.0,67387.0,0.000839]
[1729877402309,0.78224885,67407.0,67387.0,0.000839]
[1729877402528,0.4322209,67402.0,67387.0,0.000839]
[1729877402728,0.59636245,67402.0,67387.0,0.000839]
[1729877402943,0.58636245,67402.0,67387.0,0.000839]
[1729877403192,0.59636245,67402.0,67387.0,0.000839]
[1729877403394,0.6181618,67402.0,67387.0,0.000839]
[1729877403816,0.58636245,67402.0,67387.0,0.000839]
[1729877404512,0.59636245,67402.0,67387.0,0.000839]
[1729877404720,0.43085864,67402.0,67387.0,0.000839]
[1729877404933,0.43585864,67402.0,67387.0,0.000839]
[1729877406285,0.92359519,67402.0,67390.0,0.22257835]
[1729877406746,1.01467167,67402.0,67390.0,0.22257835]
[1729877407178,1.01267167,67402.0,67390.0,0.22257835]
[1729877407384,1.01467167,67402.0,67390.0,0.22257835]
[1729877407593,1.01267167,67402.0,67390.0,0.22257835]
[1729877407804,1.01467167,67402.0,67390.0,0.22257835]
[1729877408425,0.87809662,67402.0,67390.0,0.22257835]
[1729877408835,0.88009662,67402.0,67390.0,0.22257835]
[1729877410288,0.87811458,67402.0,67390.0,0.22257835]
[1729877410497,0.88011458,67402.0,67390.0,0.22257835]
[1729877411767,0.87811458,67402.0,67390.0,0.22257835]
[1729877412222,1.02861839,67402.0,67390.0,0.22257835]
[1729877412433,1.03061839,67402.0,67390.0,0.22257835]
[1729877413285,0.53539878,67402.0,67390.0,0.22257835]
[1729877413518,0.70925668,67402.0,67390.0,0.22257835]
[1729877413950,0.87811458,67402.0,67391.0,0.22257835]
[1729877414162,0.88011458,67402.0,67391.0,0.22257835]
[1729877414376,0.87811458,67402.0,67391.0,0.22257835]
[1729877414606,1.03061839,67402.0,67391.0,0.22257835]
[1729877415260,1.02861839,67402.0,67391.0,0.22257835]
[1729877415764,0.60815668,67402.0,67391.0,0.22257835]
[1729877416029,0.61815668,67402.0,67391.0,0.22257835]
[1729877416506,0.28379497,67402.0,67396.0,0.0794]
[1729877416744,0.18716237,67402.0,67396.0,0.0794]
[1729877416990,0.03543197,67402.0,67398.0,0.296744]
[1729877417247,0.03879937,67402.0,67400.0,0.148427]
[1729877417485,0.296708,67407.0,67401.0,0.14919]
[1729877417486,0.148355,67406.0,67401.0,0.14919]
[1729877417718,0.01367039,67405.0,67401.0,0.000825]
[1729877417922,0.01367039,67404.0,67402.0,0.148362]
[1729877418136,0.01367039,67403.0,67402.0,0.148362]
[1729877418354,0.0033674,67406.0,67402.0,0.148362]
[1729877418659,0.0033674,67406.0,67401.0,0.297556]
[1729877418660,0.01367964,67405.0,67404.0,0.318159]
[1729877418863,0.296664,67417.0,67404.0,0.318159]
[1729877418864,0.02189055,67413.0,67405.0,0.296713]
[1729877419087,0.01368214,67412.0,67411.0,0.077]
[1729877419299,0.01368214,67412.0,67411.0,0.225343]
[1729877419546,0.0033674,67415.0,67411.0,0.225343]
[1729877419749,0.013682,67414.0,67411.0,0.077]
[1729877419959,0.013682,67413.0,67411.0,0.225343]
[1729877420169,0.0033674,67418.0,67412.0,0.14834]
[1729877420405,0.01368268,67417.0,67414.0,0.22257835]
[1729877420610,0.001646,67419.0,67414.0,0.22257835]
[1729877420611,0.001646,67419.0,67418.0,0.148328]
[1729877420848,0.01368244,67430.0,67420.0,0.077]
[1729877421068,0.22257835,67428.0,67422.0,0.077]
[1729877421286,0.149931,67437.0,67428.0,0.077]
[1729877421287,0.01368331,67434.0,67428.0,0.077]
[1729877421500,0.001644,67437.0,67434.0,0.148293]
[1729877421711,0.001644,67437.0,67429.0,0.29880581]
[1729877421926,0.001644,67437.0,67429.0,0.15050381]
[1729877422138,0.14829,67436.0,67429.0,0.29880581]
[1729877422370,0.0033674,67436.0,67431.0,0.148299]
[1729877422583,0.1516564,67436.0,67432.0,0.15050381]
[1729877423009,0.001644,67437.0,67432.0,0.15050381]
[1729877423222,0.001644,67437.0,67433.0,0.542884]
[1729877423442,0.001644,67437.0,67433.0,0.246294]
[1729877424088,0.001644,67437.0,67436.0,0.148288]
[1729877424308,0.001644,67437.0,67436.0,0.3171459]
[1729877424530,0.001644,67437.0,67436.0,0.54614971]
[1729877424767,0.001644,67437.0,67436.0,0.55114971]
[1729877424973,0.22422235,67451.0,67450.0,0.3956149]
[1729877425382,0.001644,67451.0,67450.0,0.3956149]
[1729877425595,0.001644,67451.0,67450.0,0.0785]
[1729877426342,0.001644,67451.0,67450.0,0.226757]
[1729877426561,0.001644,67451.0,67450.0,0.54611871]
[1729877427200,0.001644,67451.0,67450.0,0.64191871]
[1729877428485,0.001644,67451.0,67450.0,0.67991871]
[1729877430347,0.001644,67451.0,67450.0,0.68191871]
[1729877430772,0.001646,67455.0,67454.0,0.155249]
[1729877430986,0.001646,67455.0,67454.0,0.9450329]
[1729877431198,0.001646,67455.0,67454.0,0.94206861]
[1729877431409,0.001646,67455.0,67454.0,0.94406861]
[1729877431638,0.001644,67461.0,67454.0,0.94406861]
[1729877431639,0.001644,67461.0,67460.0,0.286235]
[1729877431855,0.001644,67461.0,67460.0,0.85025461]
[1729877432726,0.001644,67461.0,67460.0,0.67639671]
[1729877432944,0.001644,67461.0,67460.0,0.64839671]
[1729877434098,0.001644,67461.0,67460.0,0.40016171]
[1729877434331,0.001644,67461.0,67460.0,0.23130381]
[1729877434545,0.001644,67461.0,67460.0,0.22630381]
[1729877434758,0.149877,67461.0,67460.0,0.22630381]
[1729877434963,0.001644,67461.0,67460.0,0.22630381]
[1729877436280,0.001644,67461.0,67460.0,0.37453881]
[1729877439626,0.149877,67461.0,67460.0,0.0758]
[1729877439853,0.296471,67460.0,67454.0,0.0918]
[1729877440060,0.148249,67454.0,67453.0,0.082]
[1729877440273,0.296474,67460.0,67453.0,0.23250381]
[1729877440473,0.148247,67455.0,67453.0,0.23250381]
[1729877440672,0.148244,67457.0,67453.0,0.23250381]
[1729877440953,0.29648,67458.0,67453.0,0.23250381]
[1729877441160,0.148245,67456.0,67453.0,0.23250381]
[1729877441529,0.1516094,67458.0,67453.0,0.23250381]
[1729877441739,0.148242,67457.0,67453.0,0.38075381]
[1729877441964,0.1516064,67459.0,67454.0,0.148248]
[1729877442171,0.0033674,67459.0,67453.0,0.23250381]
[1729877442402,0.149879,67461.0,67456.0,0.148243]
[1729877442775,0.149879,67461.0,67455.0,0.15050381]
[1729877442776,0.148238,67459.0,67455.0,0.15050381]
[1729877443551,0.148235,67460.0,67455.0,0.29874981]
[1729877443779,0.001644,67461.0,67460.0,0.148235]
[1729877443995,0.001644,67461.0,67456.0,0.4653469]
[1729877444194,0.149877,67461.0,67457.0,0.15050381]
[1729877444424,0.148236,67460.0,67457.0,0.15050381]
[1729877444744,0.001644,67461.0,67458.0,0.148238]
[1729877444942,0.001644,67461.0,67459.0,0.15050381]
[1729877446089,0.001644,67461.0,67460.0,0.148235]
[1729877446770,0.001644,67461.0,67460.0,0.46759671]
[1729877447166,0.001644,67461.0,67460.0,0.15050381]
[1729877447380,0.148239,67459.0,67455.0,0.148244]
[1729877447599,0.001644,67461.0,67456.0,0.15050381]
[1729877447810,0.001644,67461.0,67453.0,0.378498]
[1729877447811,0.296481,67458.0,67453.0,0.082]
[1729877448045,0.0050114,67461.0,67450.0,0.000822]
[1729877448046,0.296503,67453.0,67450.0,0.000822]
[1729877448284,0.148255,67451.0,67450.0,0.000822]
[1729877448495,0.16530054,67451.0,67450.0,0.000822]
[1729877448714,0.18383843,67451.0,67450.0,0.000822]
[1729877448923,0.18720583,67451.0,67450.0,0.000822]
[1729877449797,0.1516224,67451.0,67450.0,0.000822]
[1729877450002,0.18724883,67451.0,67450.0,0.000822]
[1729877456084,0.36110673,67451.0,67450.0,0.000822]
[1729877456293,0.35773933,67451.0,67450.0,0.000822]
[1729877457194,0.18893314,67451.0,67450.0,0.000822]
[1729877457399,0.19230054,67451.0,67450.0,0.000822]
[1729877458006,0.36115844,67451.0,67450.0,0.000822]
[1729877458218,0.35779104,67451.0,67450.0,0.000822]
[1729877458666,0.77989485,67451.0,67450.0,0.000822]
[1729877459112,0.45553314,67451.0,67450.0,0.000822]
[1729877459319,0.28893314,67451.0,67450.0,0.000822]
[1729877459526,0.29230054,67451.0,67450.0,0.000822]
[1729877460483,0.29227468,67451.0,67450.0,0.000822]
[1729877461463,0.29228153,67451.0,67450.0,0.000822]
[1729877461688,0.28391413,67451.0,67450.0,0.000822]
[1729877461910,0.28728153,67451.0,67450.0,0.000822]
[1729877463130,0.26533745,67451.0,67450.0,0.000822]
[1729877463346,0.26534484,67451.0,67450.0,0.000822]
[1729877464946,0.16534484,67451.0,67450.0,0.000822]
[1729877465847,0.18730359,67451.0,67450.0,0.000822]
[1729877466920,0.16534484,67451.0,67450.0,0.000822]
[1729877470296,0.16535232,67451.0,67450.0,0.000822]
[1729877472601,0.16198492,67451.0,67450.0,0.1696799]
[1729877473038,0.16198492,67451.0,67450.0,0.000822]
[1729877474639,0.16198492,67451.0,67450.0,0.3412799]
[1729877474640,0.01372992,67451.0,67450.0,0.3412799]